[Event "Late-Titled-Tuesday-Blitz-December-26-2023"]
[Site "Chess.com"]
[Date "2023.12.26"]
[Round "4"]
[White "oskariot"]
[Black "Elsa167"]
[Result "0-1"]
[WhiteElo "2835"]
[BlackElo "2991"]
[TimeControl "180+1"]
[EndTime "14:39:42 PST"]
[Termination "Elsa167 won on time"]

1. e4 {[%clk 0:03:00.9]} 1... c6 {[%clk 0:02:59.6]} 2. d4 {[%clk 0:03:00.9]}
2... d5 {[%clk 0:03:00.2]} 3. Nd2 {[%clk 0:03:01.4]} 3... dxe4 {[%clk
0:03:00.4]} 4. Nxe4 {[%clk 0:03:02.3]} 4... Nf6 {[%clk 0:03:01.1]} 5. Nxf6+
{[%clk 0:03:02.6]} 5... exf6 {[%clk 0:03:02]} 6. Bd3 {[%clk 0:03:02.2]} 6... Bd6
{[%clk 0:02:56.8]} 7. Ne2 {[%clk 0:03:00.9]} 7... O-O {[%clk 0:02:52.8]} 8. O-O
{[%clk 0:03:00.9]} 8... Re8 {[%clk 0:02:50.7]} 9. c4 {[%clk 0:03:00.9]} 9... Nd7
{[%clk 0:02:45.6]} 10. Nc3 {[%clk 0:02:57]} 10... Nf8 {[%clk 0:02:44.5]} 11. Be3
{[%clk 0:02:55.3]} 11... f5 {[%clk 0:02:22.3]} 12. Qf3 {[%clk 0:02:27.9]} 12...
g6 {[%clk 0:02:17.4]} 13. Rad1 {[%clk 0:02:25.3]} 13... f4 {[%clk 0:01:49.7]}
14. Bxf4 {[%clk 0:02:02.6]} 14... Bxf4 {[%clk 0:01:50.6]} 15. Qxf4 {[%clk
0:02:03.5]} 15... Ne6 {[%clk 0:01:50.9]} 16. Qh6 {[%clk 0:01:48]} 16... Nxd4
{[%clk 0:01:46.4]} 17. Ne4 {[%clk 0:01:48.3]} 17... Nf5 {[%clk 0:01:36]} 18. Qf4
{[%clk 0:01:42.4]} 18... Kg7 {[%clk 0:01:17.1]} 19. c5 {[%clk 0:01:30.4]} 19...
Be6 {[%clk 0:00:48]} 20. Bc4 {[%clk 0:01:00.3]} 20... Qh4 {[%clk 0:00:34]} 21.
Qxh4 {[%clk 0:00:41.8]} 21... Nxh4 {[%clk 0:00:34.9]} 22. Bxe6 {[%clk
0:00:33.2]} 22... Rxe6 {[%clk 0:00:35.8]} 23. f3 {[%clk 0:00:33.7]} 23... Nf5
{[%clk 0:00:34.6]} 24. Rd7 {[%clk 0:00:32.6]} 24... Re7 {[%clk 0:00:23.1]} 25.
Rfd1 {[%clk 0:00:31.2]} 25... Rae8 {[%clk 0:00:23.3]} 26. Kf2 {[%clk 0:00:29.7]}
26... b6 {[%clk 0:00:19.6]} 27. g4 {[%clk 0:00:25.2]} 27... Rxd7 {[%clk
0:00:15.9]} 28. Rxd7 {[%clk 0:00:23.5]} 28... Re7 {[%clk 0:00:16.6]} 29. Rd8
{[%clk 0:00:20.9]} 29... Nh6 {[%clk 0:00:15.3]} 30. g5 {[%clk 0:00:14.7]} 30...
Ng8 {[%clk 0:00:12.6]} 31. b4 {[%clk 0:00:10.2]} 31... h6 {[%clk 0:00:10.1]} 32.
h4 {[%clk 0:00:10.1]} 32... hxg5 {[%clk 0:00:10.7]} 33. hxg5 {[%clk 0:00:11]}
33... bxc5 {[%clk 0:00:11.1]} 34. bxc5 {[%clk 0:00:11.2]} 34... Re5 {[%clk
0:00:09]} 35. Rc8 {[%clk 0:00:09.9]} 35... Ne7 {[%clk 0:00:08.9]} 36. Rc7 {[%clk
0:00:09.2]} 36... a5 {[%clk 0:00:08.8]} 37. Kg3 {[%clk 0:00:04.4]} 37... Kf8
{[%clk 0:00:09.2]} 38. Kg4 {[%clk 0:00:04.4]} 38... Rf5 {[%clk 0:00:07.1]} 39.
Nf6 {[%clk 0:00:04.1]} 39... Rxc5 {[%clk 0:00:04]} 40. Ra7 {[%clk 0:00:03.8]}
40... Rc4+ {[%clk 0:00:03.9]} 41. f4 {[%clk 0:00:04.4]} 41... Nd5 {[%clk
0:00:03.1]} 42. Nd7+ {[%clk 0:00:02.4]} 42... Ke8 {[%clk 0:00:02.5]} 0-1

[Event "Late-Titled-Tuesday-Blitz-December-26-2023"]
[Site "Chess.com"]
[Date "2023.12.26"]
[Round "4"]
[White "nindjaxx8"]
[Black "mbojan"]
[Result "1-0"]
[WhiteElo "2578"]
[BlackElo "2886"]
[TimeControl "180+1"]
[EndTime "14:39:45 PST"]
[Termination "nindjaxx8 won on time"]

1. d4 {[%clk 0:03:00.9]} 1... g6 {[%clk 0:02:59.7]} 2. c4 {[%clk 0:03:01.3]}
2... Bg7 {[%clk 0:03:00.2]} 3. Nc3 {[%clk 0:03:01.6]} 3... d6 {[%clk 0:03:00.9]}
4. e4 {[%clk 0:03:00.4]} 4... e5 {[%clk 0:03:01.2]} 5. d5 {[%clk 0:03:00.1]}
5... a5 {[%clk 0:03:00.7]} 6. Be3 {[%clk 0:03:00.5]} 6... Na6 {[%clk 0:03:00.7]}
7. Be2 {[%clk 0:03:00.8]} 7... Nf6 {[%clk 0:02:59.7]} 8. g4 {[%clk 0:02:58]}
8... Nc5 {[%clk 0:03:00]} 9. f3 {[%clk 0:02:58.2]} 9... h5 {[%clk 0:03:00.5]}
10. g5 {[%clk 0:02:58.2]} 10... Nh7 {[%clk 0:03:01.1]} 11. h4 {[%clk 0:02:58.7]}
11... O-O {[%clk 0:03:01.7]} 12. Qd2 {[%clk 0:02:54.9]} 12... f6 {[%clk
0:03:00.9]} 13. O-O-O {[%clk 0:02:50.6]} 13... fxg5 {[%clk 0:03:00.9]} 14. hxg5
{[%clk 0:02:51.2]} 14... b6 {[%clk 0:03:00.8]} 15. Nh3 {[%clk 0:02:49.9]} 15...
Bxh3 {[%clk 0:03:00.7]} 16. Rxh3 {[%clk 0:02:50.8]} 16... Qe7 {[%clk 0:03:01.4]}
17. Rg1 {[%clk 0:02:46.7]} 17... Rf7 {[%clk 0:03:01.8]} 18. Nb5 {[%clk
0:02:41.4]} 18... Raf8 {[%clk 0:02:59.5]} 19. Kb1 {[%clk 0:02:39.2]} 19... Rf4
{[%clk 0:02:59.6]} 20. Qd1 {[%clk 0:02:27.7]} 20... Kh8 {[%clk 0:02:40.7]} 21.
a3 {[%clk 0:02:20.5]} 21... a4 {[%clk 0:02:37.5]} 22. Ka2 {[%clk 0:02:20.2]}
22... Qd7 {[%clk 0:02:19.7]} 23. Rhg3 {[%clk 0:02:11.3]} 23... Kg8 {[%clk
0:02:19.1]} 24. Bxc5 {[%clk 0:02:07.8]} 24... bxc5 {[%clk 0:02:05.1]} 25. Qxa4
{[%clk 0:02:08.1]} 25... h4 {[%clk 0:02:02.1]} 26. R3g2 {[%clk 0:02:02.3]} 26...
h3 {[%clk 0:01:57.9]} 27. Rh2 {[%clk 0:01:57.2]} 27... Rh4 {[%clk 0:01:58.2]}
28. Qa7 {[%clk 0:01:51.7]} 28... Rf7 {[%clk 0:01:58.5]} 29. a4 {[%clk
0:01:48.5]} 29... Qd8 {[%clk 0:01:46.3]} 30. Qb7 {[%clk 0:01:44.8]} 30... Nxg5
{[%clk 0:01:33.1]} 31. a5 {[%clk 0:01:43.4]} 31... c6 {[%clk 0:01:31.8]} 32.
Qxc6 {[%clk 0:01:33.2]} 32... Qxa5+ {[%clk 0:01:30.9]} 33. Kb1 {[%clk
0:01:33.7]} 33... Qd8 {[%clk 0:00:34.2]} 34. Nxd6 {[%clk 0:01:29.7]} 34... Rf6
{[%clk 0:00:31]} 35. Qe8+ {[%clk 0:01:02.6]} 35... Rf8 {[%clk 0:00:02.9]} 36.
Qxg6 {[%clk 0:00:53.3]} 36... Rh6 {[%clk 0:00:02.6]} 37. Qxg5 {[%clk 0:00:51]}
37... Qxg5 {[%clk 0:00:02.9]} 38. Rxg5 {[%clk 0:00:51.8]} 38... Rxd6 {[%clk
0:00:03.7]} 39. Rxh3 {[%clk 0:00:52.3]} 39... Rf7 {[%clk 0:00:03.4]} 40. Bd1
{[%clk 0:00:50]} 40... Kf8 {[%clk 0:00:03.6]} 41. Ba4 {[%clk 0:00:48.4]} 41...
Rh6 {[%clk 0:00:03.2]} 42. Rhg3 {[%clk 0:00:40.6]} 42... Rh1+ {[%clk 0:00:02.6]}
43. Ka2 {[%clk 0:00:40.2]} 43... Rh2 {[%clk 0:00:02.5]} 44. Rg6 {[%clk
0:00:36.2]} 44... Rd2 {[%clk 0:00:01.9]} 45. Re6 {[%clk 0:00:35.6]} 45... Ra7
{[%clk 0:00:02.2]} 46. Kb3 {[%clk 0:00:34.5]} 46... Rd3+ {[%clk 0:00:02.7]} 47.
Kc2 {[%clk 0:00:34.3]} 47... Rd4 {[%clk 0:00:03.3]} 48. Bb5 {[%clk 0:00:34]}
48... Kf7 {[%clk 0:00:03.7]} 49. Rg5 {[%clk 0:00:32]} 49... Bf6 {[%clk
0:00:03.6]} 50. Rf5 {[%clk 0:00:31.6]} 50... Kg7 {[%clk 0:00:03.8]} 51. Rfxf6
{[%clk 0:00:31.9]} 51... Rxe4 {[%clk 0:00:01.6]} 52. fxe4 {[%clk 0:00:31.8]}
52... Kg8 {[%clk 0:00:02]} 53. Rg6+ {[%clk 0:00:31.2]} 53... Kh8 {[%clk
0:00:02]} 54. Rh6+ {[%clk 0:00:31.4]} 54... Kg8 {[%clk 0:00:02.2]} 55. Reg6+
{[%clk 0:00:31.9]} 55... Kf8 {[%clk 0:00:01.4]} 56. Rh8+ {[%clk 0:00:32]} 1-0

[Event "Late-Titled-Tuesday-Blitz-December-26-2023"]
[Site "Chess.com"]
[Date "2023.12.26"]
[Round "4"]
[White "GMKrikor"]
[Black "yosephtaher"]
[Result "1/2-1/2"]
[WhiteElo "2812"]
[BlackElo "2920"]
[TimeControl "180+1"]
[EndTime "14:39:47 PST"]
[Termination "Game drawn by repetition"]

1. Nf3 {[%clk 0:03:00.9]} 1... c5 {[%clk 0:02:56.2]} 2. c4 {[%clk 0:03:00.3]}
2... g6 {[%clk 0:02:56.3]} 3. d4 {[%clk 0:02:58.4]} 3... cxd4 {[%clk 0:02:57.2]}
4. Nxd4 {[%clk 0:02:59.1]} 4... Bg7 {[%clk 0:02:57.5]} 5. e4 {[%clk 0:02:59.7]}
5... Nc6 {[%clk 0:02:57.8]} 6. Be3 {[%clk 0:03:00.2]} 6... Nf6 {[%clk
0:02:58.2]} 7. Nc3 {[%clk 0:03:00.5]} 7... O-O {[%clk 0:02:58.9]} 8. Be2 {[%clk
0:02:59.5]} 8... d6 {[%clk 0:02:59.1]} 9. O-O {[%clk 0:02:59.8]} 9... Bd7 {[%clk
0:02:59.7]} 10. Nc2 {[%clk 0:03:00]} 10... a5 {[%clk 0:02:59.5]} 11. Rc1 {[%clk
0:02:50.6]} 11... a4 {[%clk 0:02:59.8]} 12. f4 {[%clk 0:02:50.9]} 12... Qa5
{[%clk 0:02:59.9]} 13. Kh1 {[%clk 0:02:51.4]} 13... Rfc8 {[%clk 0:03:00.4]} 14.
c5 {[%clk 0:02:51.8]} 14... Be6 {[%clk 0:02:19.3]} 15. cxd6 {[%clk 0:02:32.4]}
15... exd6 {[%clk 0:02:20.2]} 16. Qxd6 {[%clk 0:02:00.1]} 16... Bg4 {[%clk
0:01:57]} 17. Qd1 {[%clk 0:01:36.5]} 17... Qh5 {[%clk 0:01:53.5]} 18. e5 {[%clk
0:01:25.2]} 18... Bxe2 {[%clk 0:01:39.3]} 19. Qxe2 {[%clk 0:01:24.5]} 19... Qxe2
{[%clk 0:01:38.7]} 20. Nxe2 {[%clk 0:01:24.9]} 20... Nd5 {[%clk 0:01:39.3]} 21.
Bd2 {[%clk 0:01:06.9]} 21... f6 {[%clk 0:01:37.7]} 22. exf6 {[%clk 0:00:50]}
22... Bxf6 {[%clk 0:01:36.9]} 23. Nc3 {[%clk 0:00:50.3]} 23... Nce7 {[%clk
0:01:35.5]} 24. Ne3 {[%clk 0:00:42.3]} 24... Nb4 {[%clk 0:01:33.2]} 25. Ne4
{[%clk 0:00:40.3]} 25... Nbd5 {[%clk 0:01:01.5]} 26. Nxd5 {[%clk 0:00:27.3]}
26... Nxd5 {[%clk 0:01:02.4]} 27. Nxf6+ {[%clk 0:00:26.4]} 27... Nxf6 {[%clk
0:01:02.5]} 28. Kg1 {[%clk 0:00:20.4]} 28... Nd5 {[%clk 0:00:54.5]} 29. Kf2
{[%clk 0:00:18.9]} 29... Kf7 {[%clk 0:00:54.2]} 30. Kf3 {[%clk 0:00:19.2]} 30...
Ne7 {[%clk 0:00:51.7]} 31. Rxc8 {[%clk 0:00:18.7]} 31... Rxc8 {[%clk 0:00:51.6]}
32. Rc1 {[%clk 0:00:19.4]} 32... Rd8 {[%clk 0:00:52.2]} 33. Be3 {[%clk
0:00:19.5]} 33... Nc6 {[%clk 0:00:51.1]} 34. a3 {[%clk 0:00:18.7]} 34... h5
{[%clk 0:00:48.3]} 35. Rc4 {[%clk 0:00:18.6]} 35... Ra8 {[%clk 0:00:47.9]} 36.
g3 {[%clk 0:00:18.7]} 36... Ke6 {[%clk 0:00:47]} 37. Ke4 {[%clk 0:00:18.9]}
37... Kd6 {[%clk 0:00:45.8]} 38. h3 {[%clk 0:00:18.8]} 38... b5 {[%clk
0:00:43.6]} 39. Rc2 {[%clk 0:00:17.1]} 39... Re8+ {[%clk 0:00:44.3]} 40. Kf3
{[%clk 0:00:17.4]} 40... Na5 {[%clk 0:00:44.8]} 41. Bd4 {[%clk 0:00:07.8]} 41...
Nc4 {[%clk 0:00:43.5]} 42. Re2 {[%clk 0:00:07.4]} 42... Rf8 {[%clk 0:00:39.8]}
43. Ke4 {[%clk 0:00:05.6]} 43... Kc6 {[%clk 0:00:36.8]} 44. Kd3 {[%clk
0:00:05.3]} 44... Kd5 {[%clk 0:00:35.8]} 45. Bc3 {[%clk 0:00:04.2]} 45... h4
{[%clk 0:00:36.4]} 46. Rg2 {[%clk 0:00:01.4]} 46... hxg3 {[%clk 0:00:31.4]} 47.
Rxg3 {[%clk 0:00:02.3]} 47... Rxf4 {[%clk 0:00:32.1]} 48. Rg5+ {[%clk
0:00:02.6]} 48... Kc6 {[%clk 0:00:30.7]} 49. Rxg6+ {[%clk 0:00:03.2]} 49... Kc7
{[%clk 0:00:30]} 50. Rg5 {[%clk 0:00:03.5]} 50... Kc6 {[%clk 0:00:24.9]} 51.
Rg6+ {[%clk 0:00:03.7]} 51... Kb7 {[%clk 0:00:25.5]} 52. Rg5 {[%clk 0:00:04]}
52... Kc6 {[%clk 0:00:26.1]} 53. Rg6+ {[%clk 0:00:04.3]} 1/2-1/2

[Event "Late-Titled-Tuesday-Blitz-December-26-2023"]
[Site "Chess.com"]
[Date "2023.12.26"]
[Round "4"]
[White "jcmesafischer"]
[Black "Slovak_fighter2000"]
[Result "0-1"]
[WhiteElo "2326"]
[BlackElo "2497"]
[TimeControl "180+1"]
[EndTime "14:39:50 PST"]
[Termination "Slovak_fighter2000 won on time"]

1. e4 {[%clk 0:03:00.9]} 1... e6 {[%clk 0:02:59.1]} 2. Qe2 {[%clk 0:02:34.7]}
2... c5 {[%clk 0:02:58.5]} 3. Nf3 {[%clk 0:02:34.3]} 3... Nc6 {[%clk 0:02:58.1]}
4. g3 {[%clk 0:02:28.4]} 4... Nf6 {[%clk 0:02:57.6]} 5. Bg2 {[%clk 0:02:26.8]}
5... d5 {[%clk 0:02:57.8]} 6. d3 {[%clk 0:02:22.1]} 6... Be7 {[%clk 0:02:57.5]}
7. Nbd2 {[%clk 0:02:13]} 7... O-O {[%clk 0:02:57.2]} 8. O-O {[%clk 0:01:59.5]}
8... b5 {[%clk 0:02:46.8]} 9. Re1 {[%clk 0:01:50.8]} 9... Bb7 {[%clk 0:02:44]}
10. e5 {[%clk 0:01:31.4]} 10... Nd7 {[%clk 0:02:41.1]} 11. Nf1 {[%clk 0:01:26]}
11... Qc7 {[%clk 0:02:40.8]} 12. h4 {[%clk 0:01:23.3]} 12... Rfc8 {[%clk
0:02:40]} 13. c3 {[%clk 0:01:14]} 13... a5 {[%clk 0:02:36.3]} 14. N1h2 {[%clk
0:01:12.5]} 14... Bf8 {[%clk 0:02:35.3]} 15. h5 {[%clk 0:01:02]} 15... h6 {[%clk
0:02:34.7]} 16. Bf4 {[%clk 0:00:58.4]} 16... b4 {[%clk 0:02:34.1]} 17. g4 {[%clk
0:00:53.8]} 17... Ne7 {[%clk 0:02:25.4]} 18. g5 {[%clk 0:00:48.7]} 18... hxg5
{[%clk 0:02:23.1]} 19. Bxg5 {[%clk 0:00:42.8]} 19... Nf5 {[%clk 0:02:21.9]} 20.
Ng4 {[%clk 0:00:40.1]} 20... bxc3 {[%clk 0:02:19.3]} 21. bxc3 {[%clk 0:00:39.7]}
21... Ba6 {[%clk 0:02:19.5]} 22. Qd2 {[%clk 0:00:38.3]} 22... Rab8 {[%clk
0:02:17.1]} 23. h6 {[%clk 0:00:36.3]} 23... g6 {[%clk 0:01:59.1]} 24. Bh3 {[%clk
0:00:11.5]} 24... d4 {[%clk 0:01:47.3]} 25. c4 {[%clk 0:00:10.4]} 25... Bb7
{[%clk 0:01:46.6]} 26. Bg2 {[%clk 0:00:07.9]} 26... Bc6 {[%clk 0:01:40.4]} 27.
Qf4 {[%clk 0:00:05.8]} 27... Qb7 {[%clk 0:01:24.9]} 28. Nh4 {[%clk 0:00:03.4]}
28... Bxg2 {[%clk 0:01:22.6]} 29. Nxg2 {[%clk 0:00:04.3]} 29... Kh7 {[%clk
0:01:18.5]} 30. Qh2 {[%clk 0:00:02.7]} 30... Qf3 {[%clk 0:01:17.4]} 31. Qf4
{[%clk 0:00:02.5]} 31... Qxf4 {[%clk 0:01:15.8]} 32. Nxf4 {[%clk 0:00:02.2]}
32... Rb2 {[%clk 0:01:12]} 33. Kg2 {[%clk 0:00:02.1]} 33... Rcb8 {[%clk
0:01:11.4]} 34. a4 {[%clk 0:00:01.1]} 34... Rc2 {[%clk 0:01:06.5]} 35. Nf6+
{[%clk 0:00:01.5]} 35... Nxf6 {[%clk 0:01:06.4]} 36. exf6 {[%clk 0:00:01.7]}
36... Rbb2 {[%clk 0:00:59.9]} 37. Nh3 {[%clk 0:00:02.1]} 37... Bxh6 {[%clk
0:00:57.6]} 38. Bc1 {[%clk 0:00:01.5]} 38... Bxc1 {[%clk 0:00:52.2]} 39. Rexc1
{[%clk 0:00:02.4]} 39... Ne3+ {[%clk 0:00:52.6]} 40. Kf3 {[%clk 0:00:01.9]}
40... Nf5 {[%clk 0:00:50.5]} 41. Ng5+ {[%clk 0:00:02.1]} 41... Kg8 {[%clk
0:00:50.7]} 42. Ne4 {[%clk 0:00:02.4]} 42... Rxc1 {[%clk 0:00:34.8]} 43. Rxc1
{[%clk 0:00:03.3]} 43... Rb3 {[%clk 0:00:32.3]} 44. Nxc5 {[%clk 0:00:02.7]}
44... Ra3 {[%clk 0:00:30.5]} 45. Rb1 {[%clk 0:00:03.1]} 45... g5 {[%clk
0:00:27.1]} 46. Kg4 {[%clk 0:00:02.7]} 46... Ra2 {[%clk 0:00:20.1]} 47. Ne4
{[%clk 0:00:03]} 47... Kh7 {[%clk 0:00:17.3]} 0-1

[Event "Late-Titled-Tuesday-Blitz-December-26-2023"]
[Site "Chess.com"]
[Date "2023.12.26"]
[Round "4"]
[White "h4parah5"]
[Black "MightyGMpretender"]
[Result "1-0"]
[WhiteElo "2927"]
[BlackElo "2756"]
[TimeControl "180+1"]
[EndTime "14:39:54 PST"]
[Termination "h4parah5 won by resignation"]

1. Nf3 {[%clk 0:03:00.9]} 1... g6 {[%clk 0:03:00.8]} 2. e4 {[%clk 0:03:00.4]}
2... Bg7 {[%clk 0:03:01.5]} 3. d4 {[%clk 0:03:00.7]} 3... d6 {[%clk 0:03:01.6]}
4. Bc4 {[%clk 0:03:00.4]} 4... Nf6 {[%clk 0:03:01.2]} 5. Qe2 {[%clk 0:02:59.3]}
5... c6 {[%clk 0:03:01.9]} 6. Bb3 {[%clk 0:02:58.9]} 6... O-O {[%clk 0:03:00.9]}
7. h3 {[%clk 0:02:58.5]} 7... b5 {[%clk 0:03:01.2]} 8. O-O {[%clk 0:02:57.6]}
8... a5 {[%clk 0:03:01.8]} 9. c3 {[%clk 0:02:56.5]} 9... Nbd7 {[%clk 0:02:39.4]}
10. e5 {[%clk 0:02:54.3]} 10... dxe5 {[%clk 0:02:39.2]} 11. dxe5 {[%clk
0:02:49.8]} 11... Nd5 {[%clk 0:02:39.8]} 12. e6 {[%clk 0:02:46.8]} 12... Nc5
{[%clk 0:02:40.2]} 13. exf7+ {[%clk 0:02:45.5]} 13... Rxf7 {[%clk 0:02:40.2]}
14. Ne5 {[%clk 0:02:39.1]} 14... Rf6 {[%clk 0:02:19.5]} 15. Ng4 {[%clk
0:02:16.1]} 15... Bxg4 {[%clk 0:02:07.7]} 16. Qxg4 {[%clk 0:02:17]} 16... Nxb3
{[%clk 0:02:06.8]} 17. axb3 {[%clk 0:02:17.9]} 17... Rf5 {[%clk 0:01:51.3]} 18.
Nd2 {[%clk 0:02:16.7]} 18... b4 {[%clk 0:01:51.2]} 19. c4 {[%clk 0:02:06.3]}
19... Nf6 {[%clk 0:01:46.6]} 20. Qe2 {[%clk 0:02:05.6]} 20... Qd6 {[%clk
0:01:23]} 21. Nf3 {[%clk 0:02:02.2]} 21... Rd8 {[%clk 0:01:18.5]} 22. g4 {[%clk
0:01:57.5]} 22... Rc5 {[%clk 0:00:51.4]} 23. Be3 {[%clk 0:01:54.9]} 23... Qe6
{[%clk 0:00:52]} 24. Rfe1 {[%clk 0:01:48.7]} 24... Re5 {[%clk 0:00:46.4]} 25.
Nxe5 {[%clk 0:01:46.5]} 25... Qxe5 {[%clk 0:00:47.3]} 26. Rad1 {[%clk
0:01:44.5]} 26... Rxd1 {[%clk 0:00:42.6]} 27. Rxd1 {[%clk 0:01:45.4]} 27... h5
{[%clk 0:00:42.7]} 28. Rd8+ {[%clk 0:01:34]} 28... Kh7 {[%clk 0:00:40.3]} 29. g5
{[%clk 0:01:28.3]} 29... Ne4 {[%clk 0:00:37.2]} 30. Qf3 {[%clk 0:01:04.7]} 30...
Nxg5 {[%clk 0:00:34.3]} 31. Qxc6 {[%clk 0:01:03.2]} 31... Nxh3+ {[%clk
0:00:29.7]} 32. Kf1 {[%clk 0:01:00.1]} 32... Qxb2 {[%clk 0:00:17.4]} 33. Qe6
{[%clk 0:00:56.9]} 33... Qb1+ {[%clk 0:00:10]} 34. Kg2 {[%clk 0:00:52.9]} 34...
Qg1+ {[%clk 0:00:10.6]} 35. Kxh3 {[%clk 0:00:52.1]} 35... Qh1+ {[%clk
0:00:11.2]} 36. Kg3 {[%clk 0:00:51]} 36... h4+ {[%clk 0:00:05.7]} 37. Kf4 {[%clk
0:00:44.1]} 37... Bh6+ {[%clk 0:00:05.4]} 38. Ke5 {[%clk 0:00:41.4]} 38... Bg7+
{[%clk 0:00:04.5]} 39. Kf4 {[%clk 0:00:20]} 39... Qg2 {[%clk 0:00:03.8]} 40. f3
{[%clk 0:00:13.8]} 40... Qc2 {[%clk 0:00:01]} 41. Qg8+ {[%clk 0:00:08.3]} 41...
Kh6 {[%clk 0:00:01.6]} 42. Kg4+ {[%clk 0:00:08.7]} 42... g5 {[%clk 0:00:02.5]}
43. Bxg5+ {[%clk 0:00:08.9]} 43... Kg6 {[%clk 0:00:03.1]} 44. Qe6+ {[%clk
0:00:09.3]} 44... Kh7 {[%clk 0:00:03.2]} 45. Qf5+ {[%clk 0:00:10]} 45... Qxf5+
{[%clk 0:00:03.9]} 46. Kxf5 {[%clk 0:00:10.9]} 46... h3 {[%clk 0:00:04.8]} 47.
Rd1 {[%clk 0:00:10.7]} 47... a4 {[%clk 0:00:05.4]} 48. bxa4 {[%clk 0:00:10]}
48... b3 {[%clk 0:00:06]} 49. Bc1 {[%clk 0:00:10.5]} 49... h2 {[%clk 0:00:05.7]}
50. Rh1 {[%clk 0:00:10.1]} 50... b2 {[%clk 0:00:06.1]} 51. Bxb2 {[%clk
0:00:10.4]} 51... Bxb2 {[%clk 0:00:07]} 52. Rxh2+ {[%clk 0:00:10.9]} 52... Kg7
{[%clk 0:00:07.8]} 53. Rxb2 {[%clk 0:00:11.4]} 1-0

[Event "Late-Titled-Tuesday-Blitz-December-26-2023"]
[Site "Chess.com"]
[Date "2023.12.26"]
[Round "4"]
[White "GAusal"]
[Black "ccccvhhhj"]
[Result "0-1"]
[WhiteElo "2311"]
[BlackElo "2484"]
[TimeControl "180+1"]
[EndTime "14:39:54 PST"]
[Termination "ccccvhhhj won on time"]

1. d4 {[%clk 0:03:00.9]} 1... e5 {[%clk 0:02:59.9]} 2. dxe5 {[%clk 0:03:00.3]}
2... d6 {[%clk 0:03:00.4]} 3. exd6 {[%clk 0:02:59.5]} 3... Bxd6 {[%clk
0:03:01.3]} 4. g3 {[%clk 0:02:59.8]} 4... Nc6 {[%clk 0:03:01.3]} 5. Bg2 {[%clk
0:03:00.4]} 5... Bf5 {[%clk 0:02:59]} 6. Nf3 {[%clk 0:03:00]} 6... Qe7 {[%clk
0:02:54.5]} 7. O-O {[%clk 0:02:54.3]} 7... O-O-O {[%clk 0:02:55.1]} 8. Qe1
{[%clk 0:02:53.4]} 8... h5 {[%clk 0:02:52.5]} 9. h4 {[%clk 0:02:52.2]} 9... f6
{[%clk 0:02:48.4]} 10. Nc3 {[%clk 0:02:45.6]} 10... Qe6 {[%clk 0:02:33.5]} 11.
e4 {[%clk 0:02:38.5]} 11... Bh3 {[%clk 0:02:33]} 12. Be3 {[%clk 0:02:35]} 12...
Bxg2 {[%clk 0:02:32.5]} 13. Kxg2 {[%clk 0:02:34.8]} 13... Nh6 {[%clk 0:02:28.1]}
14. Rd1 {[%clk 0:02:28]} 14... Ng4 {[%clk 0:02:27.7]} 15. Nd4 {[%clk 0:02:22.3]}
15... Nxd4 {[%clk 0:02:20.7]} 16. Bxd4 {[%clk 0:02:17.5]} 16... g5 {[%clk
0:02:12.2]} 17. hxg5 {[%clk 0:02:06.1]} 17... h4 {[%clk 0:02:13.1]} 18. Bxf6
{[%clk 0:01:47.7]} 18... Nxf6 {[%clk 0:02:01.8]} 19. gxf6 {[%clk 0:01:44.6]}
19... hxg3 {[%clk 0:02:01.9]} 20. Rh1 {[%clk 0:01:25.7]} 20... gxf2 {[%clk
0:01:56.6]} 21. Qxf2 {[%clk 0:01:17.7]} 21... Rdg8+ {[%clk 0:01:53.1]} 22. Kf3
{[%clk 0:01:12.5]} 22... Qg4+ {[%clk 0:01:41.2]} 23. Ke3 {[%clk 0:01:05.3]}
23... Bc5+ {[%clk 0:01:41.7]} 24. Rd4 {[%clk 0:01:03.6]} 24... Rxh1 {[%clk
0:01:39.8]} 25. f7 {[%clk 0:00:51]} 25... Bxd4+ {[%clk 0:01:29.7]} 26. Kxd4
{[%clk 0:00:46.7]} 26... Rd8+ {[%clk 0:01:28.3]} 27. Nd5 {[%clk 0:00:45.2]}
27... Qg7+ {[%clk 0:01:24.6]} 28. Kc4 {[%clk 0:00:36.6]} 28... Kb8 {[%clk
0:01:04.1]} 29. Qf4 {[%clk 0:00:33.6]} 29... Rc8 {[%clk 0:00:47.7]} 30. e5
{[%clk 0:00:32.2]} 30... Rh6 {[%clk 0:00:32.3]} 31. Qf5 {[%clk 0:00:24]} 31...
Rc6+ {[%clk 0:00:31]} 32. Kb3 {[%clk 0:00:23.1]} 32... Qg3+ {[%clk 0:00:30.4]}
33. c3 {[%clk 0:00:23]} 33... Qg7 {[%clk 0:00:26]} 34. e6 {[%clk 0:00:20.5]}
34... Rxe6 {[%clk 0:00:10.7]} 35. Qxe6 {[%clk 0:00:20.2]} 35... a6 {[%clk
0:00:08.7]} 36. Ne7 {[%clk 0:00:14.2]} 36... Rf8 {[%clk 0:00:08.4]} 37. Nd5
{[%clk 0:00:05.3]} 37... Qxf7 {[%clk 0:00:08.9]} 38. Qxf7 {[%clk 0:00:05.3]}
38... Rxf7 {[%clk 0:00:09.8]} 39. Ne3 {[%clk 0:00:05.3]} 39... Ka7 {[%clk
0:00:09.9]} 40. Nd5 {[%clk 0:00:04.3]} 40... c6 {[%clk 0:00:09]} 41. Ne3 {[%clk
0:00:03.7]} 41... Kb8 {[%clk 0:00:09.7]} 42. Nc4 {[%clk 0:00:03.9]} 42... Kc7
{[%clk 0:00:09.4]} 43. Ne5 {[%clk 0:00:03.5]} 43... Rh7 {[%clk 0:00:09.8]} 44.
Nd3 {[%clk 0:00:03.2]} 44... b5 {[%clk 0:00:09.5]} 45. a4 {[%clk 0:00:02.9]}
45... Kb6 {[%clk 0:00:09.1]} 46. axb5 {[%clk 0:00:02.9]} 46... cxb5 {[%clk
0:00:10]} 47. Nb4 {[%clk 0:00:01.8]} 47... Rh5 {[%clk 0:00:08.6]} 48. Nd3 {[%clk
0:00:01.1]} 48... a5 {[%clk 0:00:09]} 0-1